[Event "Late-Titled-Tuesday-Blitz-April-02-2024"]
[Site "Chess.com"]
[Date "2024.04.02"]
[Round "2"]
[White "vladoboch"]
[Black "carlsenCamacho"]
[Result "1/2-1/2"]
[WhiteElo "2537"]
[BlackElo "2301"]
[TimeControl "180+1"]
[EndTime "14:17:08 PDT"]
[Termination "Game drawn by repetition"]

1. e4 {[%clk 0:03:00.9]} 1... g6 {[%clk 0:02:56.8]} 2. d4 {[%clk 0:02:59.7]}
2... Bg7 {[%clk 0:02:57.2]} 3. Nf3 {[%clk 0:03:00.6]} 3... c6 {[%clk 0:02:56.4]}
4. Nc3 {[%clk 0:02:55.7]} 4... d5 {[%clk 0:02:55.3]} 5. e5 {[%clk 0:02:55.3]}
5... Bg4 {[%clk 0:02:43.1]} 6. h3 {[%clk 0:02:52.5]} 6... Bxf3 {[%clk
0:02:42.7]} 7. Qxf3 {[%clk 0:02:52.8]} 7... f6 {[%clk 0:02:40.4]} 8. Bf4 {[%clk
0:02:44.3]} 8... fxe5 {[%clk 0:02:34.5]} 9. Bxe5 {[%clk 0:02:40.9]} 9... Nf6
{[%clk 0:02:33.4]} 10. Bd3 {[%clk 0:02:32]} 10... Nbd7 {[%clk 0:02:31.9]} 11.
O-O {[%clk 0:02:29.3]} 11... O-O {[%clk 0:02:30.4]} 12. Qe2 {[%clk 0:02:27.7]}
12... e6 {[%clk 0:02:24.6]} 13. Rae1 {[%clk 0:02:22.3]} 13... Qb6 {[%clk
0:02:17.9]} 14. Nd1 {[%clk 0:02:05.2]} 14... Rae8 {[%clk 0:02:10.4]} 15. c3
{[%clk 0:02:00]} 15... Nxe5 {[%clk 0:02:01]} 16. Qxe5 {[%clk 0:01:43]} 16... Ne4
{[%clk 0:01:53.9]} 17. Qh2 {[%clk 0:01:35.4]} 17... Nd2 {[%clk 0:01:52.6]} 18.
Re2 {[%clk 0:01:25.9]} 18... Nxf1 {[%clk 0:01:48.2]} 19. Kxf1 {[%clk 0:01:26.8]}
19... c5 {[%clk 0:01:42.8]} 20. dxc5 {[%clk 0:01:23.1]} 20... Qxc5 {[%clk
0:01:41.7]} 21. Ne3 {[%clk 0:01:22.1]} 21... e5 {[%clk 0:01:31.3]} 22. Bc2
{[%clk 0:01:10.9]} 22... d4 {[%clk 0:01:23.3]} 23. Ng4 {[%clk 0:01:02]} 23...
dxc3 {[%clk 0:01:10.2]} 24. bxc3 {[%clk 0:00:49.9]} 24... Qxc3 {[%clk
0:01:07.6]} 25. Bb3+ {[%clk 0:00:41.6]} 25... Kh8 {[%clk 0:01:06.7]} 26. h4
{[%clk 0:00:41.2]} 26... e4 {[%clk 0:00:33.2]} 27. h5 {[%clk 0:00:23.6]} 27...
gxh5 {[%clk 0:00:26.7]} 28. Qxh5 {[%clk 0:00:21.6]} 28... e3 {[%clk 0:00:24.8]}
29. Bc2 {[%clk 0:00:13.9]} 29... Qa1+ {[%clk 0:00:05.5]} 30. Re1 {[%clk
0:00:14.5]} 30... Qxe1+ {[%clk 0:00:05.5]} 31. Kxe1 {[%clk 0:00:14.7]} 31...
exf2+ {[%clk 0:00:05.9]} 32. Kd2 {[%clk 0:00:11.9]} 32... Rd8+ {[%clk
0:00:06.3]} 33. Ke3 {[%clk 0:00:07.9]} 33... Rde8+ {[%clk 0:00:06.7]} 34. Kd2
{[%clk 0:00:06.5]} 34... Rd8+ {[%clk 0:00:07.2]} 35. Ke3 {[%clk 0:00:05.8]}
35... Rde8+ {[%clk 0:00:07.8]} 36. Kd2 {[%clk 0:00:04.6]} 1/2-1/2

[Event "Late-Titled-Tuesday-Blitz-April-02-2024"]
[Site "Chess.com"]
[Date "2024.04.02"]
[Round "2"]
[White "kai_nov"]
[Black "Caracal3000"]
[Result "0-1"]
[WhiteElo "2287"]
[BlackElo "2534"]
[TimeControl "180+1"]
[EndTime "14:17:08 PDT"]
[Termination "Caracal3000 won on time"]

1. d4 {[%clk 0:02:59.9]} 1... d5 {[%clk 0:02:57.5]} 2. c4 {[%clk 0:02:59.7]}
2... e6 {[%clk 0:02:57.9]} 3. Nc3 {[%clk 0:02:59]} 3... c6 {[%clk 0:02:58.5]} 4.
Bf4 {[%clk 0:02:58.1]} 4... dxc4 {[%clk 0:02:56.8]} 5. e3 {[%clk 0:02:58]} 5...
b5 {[%clk 0:02:56.5]} 6. a4 {[%clk 0:02:57.7]} 6... Bb4 {[%clk 0:02:56.6]} 7.
axb5 {[%clk 0:02:57.1]} 7... cxb5 {[%clk 0:02:57.5]} 8. Qf3 {[%clk 0:02:57.3]}
8... Qd5 {[%clk 0:02:48.9]} 9. Qg3 {[%clk 0:02:49.8]} 9... Nf6 {[%clk
0:02:13.8]} 10. Qxg7 {[%clk 0:02:46.4]} 10... Rg8 {[%clk 0:02:04.9]} 11. Qxf6
{[%clk 0:02:44]} 11... Rxg2 {[%clk 0:02:05.3]} 12. Bd6 {[%clk 0:02:25]} 12...
Bxc3+ {[%clk 0:01:04]} 13. bxc3 {[%clk 0:02:23.3]} 13... Nc6 {[%clk 0:01:04.9]}
14. Bc5 {[%clk 0:01:45.6]} 14... Bb7 {[%clk 0:00:34.7]} 15. Ne2 {[%clk
0:01:27.4]} 15... Rg6 {[%clk 0:00:33.1]} 16. Qh8+ {[%clk 0:01:22.3]} 16... Kd7
{[%clk 0:00:32.9]} 17. Qxh7 {[%clk 0:01:22]} 17... Nd8 {[%clk 0:00:24.5]} 18.
Rg1 {[%clk 0:01:13.2]} 18... Rxg1 {[%clk 0:00:19.3]} 19. Nxg1 {[%clk 0:01:14.1]}
19... Qe4 {[%clk 0:00:13.3]} 20. Rc1 {[%clk 0:00:55.5]} 20... Qxh7 {[%clk
0:00:12.7]} 21. Ne2 {[%clk 0:00:37.1]} 21... Qxh2 {[%clk 0:00:11.5]} 22. Ng3
{[%clk 0:00:36.7]} 22... a5 {[%clk 0:00:09.9]} 23. Rb1 {[%clk 0:00:35.8]} 23...
Qg1 {[%clk 0:00:09.8]} 24. Rxb5 {[%clk 0:00:33.6]} 24... Bg2 {[%clk 0:00:10]}
25. Rb2 {[%clk 0:00:23.7]} 25... Bxf1 {[%clk 0:00:09.9]} 26. Nxf1 {[%clk
0:00:23.6]} 26... a4 {[%clk 0:00:10]} 27. Ba3 {[%clk 0:00:20.9]} 27... Qg6
{[%clk 0:00:09.7]} 28. Ng3 {[%clk 0:00:17.6]} 28... Qd3 {[%clk 0:00:09]} 29. Ne2
{[%clk 0:00:12.3]} 29... Kc6 {[%clk 0:00:08.3]} 30. f3 {[%clk 0:00:08.2]} 30...
Nb7 {[%clk 0:00:08.6]} 31. Kf2 {[%clk 0:00:08.4]} 31... Rh8 {[%clk 0:00:08.7]}
32. Kg2 {[%clk 0:00:06.3]} 32... Rg8+ {[%clk 0:00:08.9]} 33. Kf2 {[%clk
0:00:06.2]} 33... Qd1 {[%clk 0:00:08.8]} 34. Be7 {[%clk 0:00:01.3]} 34... Rh8
{[%clk 0:00:08.5]} 0-1

[Event "Late-Titled-Tuesday-Blitz-April-02-2024"]
[Site "Chess.com"]
[Date "2024.04.02"]
[Round "2"]
[White "Zq1"]
[Black "Vladimir_Zakhartsov"]
[Result "1-0"]
[WhiteElo "2617"]
[BlackElo "2964"]
[TimeControl "180+1"]
[EndTime "14:17:10 PDT"]
[Termination "Zq1 won on time"]

1. d4 {[%clk 0:03:00.9]} 1... Nf6 {[%clk 0:02:51.3]} 2. c4 {[%clk 0:03:00.6]}
2... e6 {[%clk 0:02:49.1]} 3. g3 {[%clk 0:02:59.5]} 3... c5 {[%clk 0:02:49]} 4.
Nf3 {[%clk 0:02:58.4]} 4... cxd4 {[%clk 0:02:37.1]} 5. Nxd4 {[%clk 0:02:57.8]}
5... Nc6 {[%clk 0:02:35.4]} 6. Bg2 {[%clk 0:02:57.4]} 6... Bb4+ {[%clk
0:02:28.2]} 7. Bd2 {[%clk 0:02:53.5]} 7... Qb6 {[%clk 0:02:22.1]} 8. e3 {[%clk
0:02:49.8]} 8... Ne5 {[%clk 0:02:07.7]} 9. Qb3 {[%clk 0:02:31.6]} 9... Bc5
{[%clk 0:01:44.9]} 10. O-O {[%clk 0:02:14.7]} 10... O-O {[%clk 0:01:38.3]} 11.
Qxb6 {[%clk 0:01:49.9]} 11... Bxb6 {[%clk 0:01:25.7]} 12. Bb4 {[%clk 0:01:32.6]}
12... Rd8 {[%clk 0:01:24.9]} 13. b3 {[%clk 0:01:26.9]} 13... d5 {[%clk
0:01:21.5]} 14. Be7 {[%clk 0:01:25.9]} 14... Re8 {[%clk 0:01:05.1]} 15. Bxf6
{[%clk 0:01:25.5]} 15... gxf6 {[%clk 0:01:05.6]} 16. cxd5 {[%clk 0:01:22]} 16...
Nd3 {[%clk 0:00:51.1]} 17. Nc3 {[%clk 0:01:12.5]} 17... e5 {[%clk 0:00:51.3]}
18. Ndb5 {[%clk 0:01:06.4]} 18... Bg4 {[%clk 0:00:49.7]} 19. h3 {[%clk
0:00:58.1]} 19... Bd7 {[%clk 0:00:49.4]} 20. Nd6 {[%clk 0:00:54.3]} 20... Reb8
{[%clk 0:00:43.8]} 21. Be4 {[%clk 0:00:47.2]} 21... Nc5 {[%clk 0:00:33.4]} 22.
Bf5 {[%clk 0:00:46.8]} 22... Rd8 {[%clk 0:00:23.1]} 23. b4 {[%clk 0:00:23.9]}
23... Na4 {[%clk 0:00:23]} 24. Nxa4 {[%clk 0:00:18.5]} 24... Bxa4 {[%clk
0:00:23.9]} 25. Nxb7 {[%clk 0:00:15.4]} 25... Rdb8 {[%clk 0:00:10.8]} 26. Nc5
{[%clk 0:00:14.6]} 26... Bb5 {[%clk 0:00:07.5]} 27. Rfd1 {[%clk 0:00:13.2]}
27... a5 {[%clk 0:00:07.2]} 28. a3 {[%clk 0:00:12.7]} 28... Kf8 {[%clk
0:00:02.2]} 29. d6 {[%clk 0:00:11.6]} 29... Rd8 {[%clk 0:00:01.5]} 30. Bxh7
{[%clk 0:00:10.7]} 30... axb4 {[%clk 0:00:01.3]} 31. axb4 {[%clk 0:00:08.8]}
31... Rab8 {[%clk 0:00:02.2]} 32. Be4 {[%clk 0:00:06.7]} 32... Kg7 {[%clk
0:00:02.1]} 33. Rac1 {[%clk 0:00:05.3]} 33... Rbc8 {[%clk 0:00:01.5]} 34. Kg2
{[%clk 0:00:05.3]} 34... Rb8 {[%clk 0:00:02]} 35. g4 {[%clk 0:00:05.5]} 1-0

[Event "Late-Titled-Tuesday-Blitz-April-02-2024"]
[Site "Chess.com"]
[Date "2024.04.02"]
[Round "2"]
[White "Road2GM3000"]
[Black "NateSolon"]
[Result "1-0"]
[WhiteElo "2484"]
[BlackElo "2702"]
[TimeControl "180+1"]
[EndTime "14:17:10 PDT"]
[Termination "Road2GM3000 won by resignation"]

1. d4 {[%clk 0:03:00.9]} 1... Nf6 {[%clk 0:02:59]} 2. c4 {[%clk 0:03:01]} 2...
e6 {[%clk 0:02:59.2]} 3. Nc3 {[%clk 0:03:01.2]} 3... Bb4 {[%clk 0:02:59.3]} 4.
Nf3 {[%clk 0:03:01.8]} 4... O-O {[%clk 0:02:58.6]} 5. Bg5 {[%clk 0:03:02.2]}
5... c5 {[%clk 0:02:53.2]} 6. e3 {[%clk 0:03:02.2]} 6... cxd4 {[%clk 0:02:51.7]}
7. exd4 {[%clk 0:03:00.1]} 7... h6 {[%clk 0:02:51.7]} 8. Bh4 {[%clk 0:03:00.3]}
8... Qa5 {[%clk 0:02:48.7]} 9. Bxf6 {[%clk 0:02:50]} 9... Bxc3+ {[%clk
0:02:48.1]} 10. bxc3 {[%clk 0:02:50.8]} 10... Qxc3+ {[%clk 0:02:48.5]} 11. Nd2
{[%clk 0:02:51.5]} 11... gxf6 {[%clk 0:02:45.5]} 12. Qg4+ {[%clk 0:02:49.5]}
12... Kh7 {[%clk 0:02:38.2]} 13. Rb1 {[%clk 0:02:40.1]} 13... Nc6 {[%clk
0:02:33.9]} 14. d5 {[%clk 0:02:09]} 14... Nd4 {[%clk 0:02:12.9]} 15. h4 {[%clk
0:01:43.8]} 15... Rg8 {[%clk 0:02:03.4]} 16. Qf4 {[%clk 0:01:42.6]} 16... Nc2+
{[%clk 0:01:37.1]} 17. Kd1 {[%clk 0:01:40.8]} 17... Qd4 {[%clk 0:01:10.6]} 18.
Qf3 {[%clk 0:01:24.1]} 18... b5 {[%clk 0:00:42]} 19. Bd3+ {[%clk 0:01:12.9]}
19... f5 {[%clk 0:00:40.6]} 20. Bxc2 {[%clk 0:00:58.9]} 20... bxc4 {[%clk
0:00:40.2]} 21. dxe6 {[%clk 0:00:55.8]} 21... dxe6 {[%clk 0:00:36.4]} 22. Kc1
{[%clk 0:00:32.3]} 22... Ba6 {[%clk 0:00:35.7]} 23. Rd1 {[%clk 0:00:15.9]} 23...
Qxh4 {[%clk 0:00:31.9]} 24. Nf1 {[%clk 0:00:08.6]} 24... Rad8 {[%clk 0:00:26]}
25. Ne3 {[%clk 0:00:05.2]} 25... Rxd1+ {[%clk 0:00:22.6]} 26. Nxd1 {[%clk
0:00:06.1]} 26... Qd4 {[%clk 0:00:19.5]} 27. Ne3 {[%clk 0:00:05.9]} 27... Rd8
{[%clk 0:00:18.6]} 28. Nxf5 {[%clk 0:00:04.6]} 28... exf5 {[%clk 0:00:14.9]} 29.
Qxf5+ {[%clk 0:00:04.5]} 29... Kg7 {[%clk 0:00:15.5]} 30. Qh7+ {[%clk
0:00:03.9]} 30... Kf8 {[%clk 0:00:16]} 31. Qxh6+ {[%clk 0:00:02.1]} 31... Ke7
{[%clk 0:00:15]} 32. Qg5+ {[%clk 0:00:02.5]} 32... Qf6 {[%clk 0:00:13.1]} 33.
Qxf6+ {[%clk 0:00:02.9]} 33... Kxf6 {[%clk 0:00:14]} 34. Rb4 {[%clk 0:00:02.2]}
34... Rh8 {[%clk 0:00:13.2]} 35. Be4 {[%clk 0:00:02.6]} 35... Rh4 {[%clk
0:00:12.6]} 36. Bf3 {[%clk 0:00:02.6]} 36... Rd4 {[%clk 0:00:12.5]} 37. Kc2
{[%clk 0:00:03]} 37... Ke5 {[%clk 0:00:12.6]} 38. Ra4 {[%clk 0:00:03.7]} 38...
Bb5 {[%clk 0:00:11.9]} 39. Rxa7 {[%clk 0:00:03.7]} 39... f5 {[%clk 0:00:12.6]}
40. Ra5 {[%clk 0:00:04.1]} 1-0

[Event "Late-Titled-Tuesday-Blitz-April-02-2024"]
[Site "Chess.com"]
[Date "2024.04.02"]
[Round "2"]
[White "nabukatnezarr"]
[Black "Polish_fighter3000"]
[Result "0-1"]
[WhiteElo "2626"]
[BlackElo "3155"]
[TimeControl "180+1"]
[EndTime "14:17:11 PDT"]
[Termination "Polish_fighter3000 won on time"]

1. Nf3 {[%clk 0:02:59]} 1... d5 {[%clk 0:02:59.2]} 2. g3 {[%clk 0:02:59.5]} 2...
c5 {[%clk 0:02:58.3]} 3. Bg2 {[%clk 0:02:59.6]} 3... Nf6 {[%clk 0:02:58.2]} 4.
O-O {[%clk 0:02:59.4]} 4... h6 {[%clk 0:02:58.3]} 5. d3 {[%clk 0:02:24.3]} 5...
Nc6 {[%clk 0:02:56.3]} 6. Na3 {[%clk 0:02:24.3]} 6... e6 {[%clk 0:02:51.3]} 7.
c4 {[%clk 0:02:17.1]} 7... Be7 {[%clk 0:02:44.9]} 8. b3 {[%clk 0:02:16.1]} 8...
O-O {[%clk 0:02:43.4]} 9. Bb2 {[%clk 0:02:15.8]} 9... d4 {[%clk 0:02:42.4]} 10.
Nc2 {[%clk 0:02:15.2]} 10... e5 {[%clk 0:02:41.7]} 11. e3 {[%clk 0:02:12.7]}
11... a5 {[%clk 0:02:39.1]} 12. Re1 {[%clk 0:01:57.9]} 12... Qc7 {[%clk
0:02:27]} 13. Na3 {[%clk 0:01:53.3]} 13... Bf5 {[%clk 0:02:19.3]} 14. Nb5 {[%clk
0:01:52.8]} 14... Qd7 {[%clk 0:02:02.3]} 15. exd4 {[%clk 0:01:44.2]} 15... exd4
{[%clk 0:02:03.2]} 16. Ne5 {[%clk 0:01:38.3]} 16... Nxe5 {[%clk 0:02:02.8]} 17.
Rxe5 {[%clk 0:01:39.2]} 17... Bg4 {[%clk 0:02:03.4]} 18. Qd2 {[%clk 0:01:36.9]}
18... Rfe8 {[%clk 0:01:50]} 19. Rae1 {[%clk 0:01:35.7]} 19... Bf8 {[%clk
0:01:34.4]} 20. Rxe8 {[%clk 0:01:16.9]} 20... Nxe8 {[%clk 0:01:35.3]} 21. Qf4
{[%clk 0:00:53.6]} 21... Nd6 {[%clk 0:01:29]} 22. a4 {[%clk 0:00:24.4]} 22... g5
{[%clk 0:01:17.5]} 23. Qd2 {[%clk 0:00:23.2]} 23... Nxb5 {[%clk 0:01:03.1]} 24.
axb5 {[%clk 0:00:23.3]} 24... Bd6 {[%clk 0:01:03]} 25. Bd5 {[%clk 0:00:21.4]}
25... Kg7 {[%clk 0:01:02.6]} 26. b6 {[%clk 0:00:15.9]} 26... Ra6 {[%clk
0:01:01.1]} 27. Ba3 {[%clk 0:00:16.3]} 27... Bf5 {[%clk 0:00:56.2]} 28. Kg2
{[%clk 0:00:09.7]} 28... Bh3+ {[%clk 0:00:47.6]} 29. Kg1 {[%clk 0:00:09.8]}
29... Rxb6 {[%clk 0:00:41.4]} 30. Ra1 {[%clk 0:00:08.4]} 30... Rxb3 {[%clk
0:00:40.2]} 31. Qxa5 {[%clk 0:00:06.9]} 31... Rxd3 {[%clk 0:00:35.6]} 32. Bxc5
{[%clk 0:00:06.9]} 32... Bxc5 {[%clk 0:00:36.5]} 33. Qxc5 {[%clk 0:00:07]} 33...
Qa4 {[%clk 0:00:37]} 34. Re1 {[%clk 0:00:03.5]} 34... Rd1 {[%clk 0:00:13.9]} 35.
Qe7 {[%clk 0:00:04.1]} 35... Be6 {[%clk 0:00:10.5]} 36. Kg2 {[%clk 0:00:01.5]}
36... Rxe1 {[%clk 0:00:10]} 0-1

[Event "Late-Titled-Tuesday-Blitz-April-02-2024"]
[Site "Chess.com"]
[Date "2024.04.02"]
[Round "2"]
[White "Korchmar_Vasiliy"]
[Black "Smiechu"]
[Result "0-1"]
[WhiteElo "2725"]
[BlackElo "2487"]
[TimeControl "180+1"]
[EndTime "14:17:11 PDT"]
[Termination "Smiechu won by checkmate"]

1. e4 {[%clk 0:03:00.9]} 1... c5 {[%clk 0:02:59.4]} 2. d4 {[%clk 0:03:00.9]}
2... cxd4 {[%clk 0:02:58.5]} 3. Qxd4 {[%clk 0:03:01.8]} 3... Nc6 {[%clk
0:02:57.9]} 4. Qd3 {[%clk 0:03:02.5]} 4... g6 {[%clk 0:02:58.4]} 5. Nc3 {[%clk
0:03:02.8]} 5... Bg7 {[%clk 0:02:59]} 6. Nf3 {[%clk 0:03:03.5]} 6... d6 {[%clk
0:02:59]} 7. Be2 {[%clk 0:03:04.2]} 7... Nf6 {[%clk 0:02:59]} 8. O-O {[%clk
0:03:04.8]} 8... O-O {[%clk 0:02:58.5]} 9. Nd5 {[%clk 0:03:05.4]} 9... Bg4
{[%clk 0:02:43.6]} 10. c3 {[%clk 0:03:05]} 10... Nxd5 {[%clk 0:02:19.7]} 11.
exd5 {[%clk 0:03:05.9]} 11... Bxf3 {[%clk 0:02:19.5]} 12. Qxf3 {[%clk
0:03:06.8]} 12... Ne5 {[%clk 0:02:17.6]} 13. Qg3 {[%clk 0:02:56.9]} 13... Qb6
{[%clk 0:02:13.1]} 14. Qh4 {[%clk 0:02:32.4]} 14... Rfe8 {[%clk 0:02:03]} 15. a4
{[%clk 0:02:29.7]} 15... a6 {[%clk 0:01:59.9]} 16. a5 {[%clk 0:02:27.7]} 16...
Qc7 {[%clk 0:01:56.8]} 17. Be3 {[%clk 0:02:23.1]} 17... Nd7 {[%clk 0:01:37.4]}
18. f4 {[%clk 0:02:17.6]} 18... Nf6 {[%clk 0:01:36.3]} 19. Bf3 {[%clk
0:01:51.6]} 19... Qc4 {[%clk 0:01:26.4]} 20. Rfd1 {[%clk 0:01:47.2]} 20... Rac8
{[%clk 0:01:09]} 21. Bd4 {[%clk 0:01:30.4]} 21... Nd7 {[%clk 0:00:53.3]} 22. Kh1
{[%clk 0:01:29.4]} 22... Bxd4 {[%clk 0:00:49.1]} 23. Rxd4 {[%clk 0:01:30.3]}
23... Qb3 {[%clk 0:00:49.6]} 24. Rb4 {[%clk 0:01:28.1]} 24... Qc2 {[%clk
0:00:46.3]} 25. Rxb7 {[%clk 0:01:10.5]} 25... Nc5 {[%clk 0:00:40]} 26. Rb6
{[%clk 0:00:56.2]} 26... Nb3 {[%clk 0:00:22]} 27. Bd1 {[%clk 0:00:47.4]} 27...
Qxb2 {[%clk 0:00:22.1]} 28. Rxb3 {[%clk 0:00:08.5]} 28... Qxa1 {[%clk
0:00:21.2]} 29. Qe1 {[%clk 0:00:09.1]} 29... Rb8 {[%clk 0:00:19.4]} 30. Rb4
{[%clk 0:00:09.3]} 30... Rxb4 {[%clk 0:00:18.6]} 31. cxb4 {[%clk 0:00:10.2]}
31... Rc8 {[%clk 0:00:18.4]} 32. h4 {[%clk 0:00:08.9]} 32... Rc1 {[%clk
0:00:18.1]} 33. Qxe7 {[%clk 0:00:09.2]} 33... Rxd1+ {[%clk 0:00:18.4]} 34. Kh2
{[%clk 0:00:10]} 34... Re1 {[%clk 0:00:15.1]} 35. Qxd6 {[%clk 0:00:08.4]} 35...
Qd4 {[%clk 0:00:14.3]} 36. b5 {[%clk 0:00:05.1]} 36... Qg1+ {[%clk 0:00:13.6]}
37. Kh3 {[%clk 0:00:04.3]} 37... Re3+ {[%clk 0:00:13.8]} 38. Kg4 {[%clk
0:00:04.7]} 38... Qxg2# {[%clk 0:00:13.8]} 0-1

[Event "Late-Titled-Tuesday-Blitz-April-02-2024"]
[Site "Chess.com"]
[Date "2024.04.02"]
[Round "2"]
[White "only_strong_moves"]
[Black "Stalri"]
[Result "0-1"]
[WhiteElo "2744"]
[BlackElo "2562"]
[TimeControl "180+1"]
[EndTime "14:17:12 PDT"]
[Termination "Stalri won by checkmate"]

1. Nc3 {[%clk 0:02:59.6]} 1... Nf6 {[%clk 0:02:58.8]} 2. e4 {[%clk 0:02:59.7]}
2... d6 {[%clk 0:02:57.1]} 3. d4 {[%clk 0:02:59.5]} 3... Nbd7 {[%clk 0:02:54.1]}
4. Nf3 {[%clk 0:02:57.4]} 4... g6 {[%clk 0:02:54.4]} 5. e5 {[%clk 0:02:42.7]}
5... Nh5 {[%clk 0:02:52.5]} 6. Be2 {[%clk 0:02:38.2]} 6... c5 {[%clk 0:02:44.8]}
7. exd6 {[%clk 0:02:31.8]} 7... exd6 {[%clk 0:02:43.5]} 8. O-O {[%clk
0:02:32.1]} 8... Bg7 {[%clk 0:02:41.4]} 9. Nb5 {[%clk 0:02:28.8]} 9... O-O
{[%clk 0:02:23.5]} 10. Nxd6 {[%clk 0:02:21.9]} 10... Qc7 {[%clk 0:01:52.1]} 11.
Nb5 {[%clk 0:02:17.7]} 11... Qb6 {[%clk 0:01:48.8]} 12. dxc5 {[%clk 0:02:15.3]}
12... Nxc5 {[%clk 0:01:48.7]} 13. Qd6 {[%clk 0:02:15.5]} 13... Qxd6 {[%clk
0:01:34.1]} 14. Nxd6 {[%clk 0:02:16.4]} 14... Rd8 {[%clk 0:01:31.4]} 15. Nxc8
{[%clk 0:02:13.3]} 15... Raxc8 {[%clk 0:01:32.3]} 16. c3 {[%clk 0:02:12.6]}
16... a5 {[%clk 0:01:27.8]} 17. Be3 {[%clk 0:02:08.7]} 17... Na4 {[%clk
0:01:27.5]} 18. Rab1 {[%clk 0:02:02.7]} 18... Nf6 {[%clk 0:01:16.6]} 19. Bb5
{[%clk 0:02:00.4]} 19... Nc5 {[%clk 0:01:16.4]} 20. Rbd1 {[%clk 0:02:00.2]}
20... Nd5 {[%clk 0:01:15.6]} 21. Bd4 {[%clk 0:01:58.3]} 21... Bxd4 {[%clk
0:01:05.4]} 22. Nxd4 {[%clk 0:01:59.1]} 22... Ne4 {[%clk 0:01:03.4]} 23. Ne2
{[%clk 0:01:42.8]} 23... Nc7 {[%clk 0:00:51.8]} 24. Bd3 {[%clk 0:01:39.4]} 24...
Nc5 {[%clk 0:00:51.5]} 25. Bc2 {[%clk 0:01:39.3]} 25... b5 {[%clk 0:00:47.3]}
26. Nd4 {[%clk 0:01:38.5]} 26... b4 {[%clk 0:00:44.8]} 27. cxb4 {[%clk
0:01:30.9]} 27... axb4 {[%clk 0:00:45.7]} 28. Nc6 {[%clk 0:01:31.3]} 28... Re8
{[%clk 0:00:44.5]} 29. Nxb4 {[%clk 0:01:27.4]} 29... N7e6 {[%clk 0:00:40.4]} 30.
Nd5 {[%clk 0:01:18.6]} 30... Kg7 {[%clk 0:00:39]} 31. Ne3 {[%clk 0:01:13.2]}
31... Rb8 {[%clk 0:00:38.7]} 32. b3 {[%clk 0:01:12.7]} 32... Nf4 {[%clk
0:00:38.6]} 33. Rfe1 {[%clk 0:01:06.6]} 33... Nce6 {[%clk 0:00:33.9]} 34. g3
{[%clk 0:01:05.1]} 34... Nh3+ {[%clk 0:00:33.3]} 35. Kg2 {[%clk 0:01:05.3]}
35... Nhg5 {[%clk 0:00:34.2]} 36. h4 {[%clk 0:01:04.3]} 36... Nf4+ {[%clk
0:00:29.1]} 37. gxf4 {[%clk 0:01:03.5]} 37... Ne6 {[%clk 0:00:30]} 38. f5 {[%clk
0:01:02.8]} 38... Nf4+ {[%clk 0:00:27.5]} 39. Kg3 {[%clk 0:01:02.4]} 39... Nh5+
{[%clk 0:00:27.6]} 40. Kh2 {[%clk 0:01:03.2]} 40... Ra8 {[%clk 0:00:27.6]} 41.
a4 {[%clk 0:01:03.2]} 41... Rab8 {[%clk 0:00:24.9]} 42. a5 {[%clk 0:01:02.1]}
42... Rb5 {[%clk 0:00:22.7]} 43. a6 {[%clk 0:01:00.1]} 43... Ra8 {[%clk
0:00:22.4]} 44. Ra1 {[%clk 0:00:54.7]} 44... Rb4 {[%clk 0:00:22.8]} 45. Nc4
{[%clk 0:00:53]} 45... Nf6 {[%clk 0:00:18]} 46. fxg6 {[%clk 0:00:53.3]} 46...
hxg6 {[%clk 0:00:18.1]} 47. Re7 {[%clk 0:00:50.3]} 47... Rb5 {[%clk 0:00:15.5]}
48. a7 {[%clk 0:00:48]} 48... Rh5 {[%clk 0:00:15.1]} 49. Kg3 {[%clk 0:00:46.7]}
49... g5 {[%clk 0:00:13.7]} 50. hxg5 {[%clk 0:00:46.3]} 50... Rxg5+ {[%clk
0:00:14.6]} 51. Kh2 {[%clk 0:00:46.1]} 51... Rh8+ {[%clk 0:00:13.7]} 52. Bh7
{[%clk 0:00:45.2]} 52... Rxh7# {[%clk 0:00:14]} 0-1

[Event "Late-Titled-Tuesday-Blitz-April-02-2024"]
[Site "Chess.com"]
[Date "2024.04.02"]
[Round "2"]
[White "sergoy"]
[Black "ninguno46"]
[Result "1-0"]
[WhiteElo "2897"]
[BlackElo "2581"]
[TimeControl "180+1"]
[EndTime "14:17:14 PDT"]
[Termination "sergoy won on time"]

1. d4 {[%clk 0:02:56.4]} 1... Nf6 {[%clk 0:02:59.1]} 2. c4 {[%clk 0:02:52.2]}
2... e6 {[%clk 0:02:59]} 3. Nf3 {[%clk 0:02:52.8]} 3... Bb4+ {[%clk 0:02:58.5]}
4. Nbd2 {[%clk 0:02:52]} 4... b6 {[%clk 0:02:57.6]} 5. a3 {[%clk 0:02:51.2]}
5... Bxd2+ {[%clk 0:02:57.1]} 6. Qxd2 {[%clk 0:02:52.1]} 6... Bb7 {[%clk
0:02:55.9]} 7. e3 {[%clk 0:02:52.7]} 7... O-O {[%clk 0:02:55.3]} 8. Be2 {[%clk
0:02:53.4]} 8... d6 {[%clk 0:02:55.6]} 9. O-O {[%clk 0:02:53.5]} 9... a5 {[%clk
0:02:49.9]} 10. b3 {[%clk 0:02:53.3]} 10... Nbd7 {[%clk 0:02:49.1]} 11. Bb2
{[%clk 0:02:53.3]} 11... Ne4 {[%clk 0:02:47.9]} 12. Qc2 {[%clk 0:02:53]} 12...
f5 {[%clk 0:02:47.2]} 13. d5 {[%clk 0:02:45.6]} 13... e5 {[%clk 0:02:26.8]} 14.
Ne1 {[%clk 0:02:44.9]} 14... Ng5 {[%clk 0:02:14.4]} 15. f4 {[%clk 0:02:42]}
15... exf4 {[%clk 0:02:11.8]} 16. exf4 {[%clk 0:02:42.9]} 16... Ne4 {[%clk
0:02:11.7]} 17. Nf3 {[%clk 0:02:43.5]} 17... Ndf6 {[%clk 0:01:34.5]} 18. Nd4
{[%clk 0:02:43.5]} 18... Bc8 {[%clk 0:01:31.1]} 19. Bf3 {[%clk 0:02:43.7]} 19...
Re8 {[%clk 0:01:30.5]} 20. Rae1 {[%clk 0:02:43.3]} 20... Bd7 {[%clk 0:01:30.5]}
21. Re2 {[%clk 0:02:34.4]} 21... Re7 {[%clk 0:01:26.9]} 22. Rfe1 {[%clk
0:02:34.3]} 22... Qe8 {[%clk 0:01:26.8]} 23. g4 {[%clk 0:02:27.2]} 23... Qg6
{[%clk 0:01:20.8]} 24. g5 {[%clk 0:02:20.4]} 24... Rae8 {[%clk 0:01:16.4]} 25.
h4 {[%clk 0:01:31.3]} 25... h5 {[%clk 0:01:08.8]} 26. Kg2 {[%clk 0:01:18.8]}
26... Ng4 {[%clk 0:00:46.8]} 27. b4 {[%clk 0:01:17.4]} 27... axb4 {[%clk
0:00:45.4]} 28. axb4 {[%clk 0:01:18.3]} 28... Qh7 {[%clk 0:00:28.7]} 29. Qb3
{[%clk 0:01:08]} 29... Qg6 {[%clk 0:00:22.5]} 30. Qa3 {[%clk 0:01:04.5]} 30...
Qf7 {[%clk 0:00:15.9]} 31. Qa7 {[%clk 0:01:04.1]} 31... Nd2 {[%clk 0:00:09.6]}
32. Qxc7 {[%clk 0:00:34]} 32... Rxe2+ {[%clk 0:00:06.8]} 33. Rxe2 {[%clk
0:00:31.4]} 33... Ne3+ {[%clk 0:00:05.6]} 34. Kf2 {[%clk 0:00:24.2]} 34... Nexc4
{[%clk 0:00:05.3]} 35. Bc3 {[%clk 0:00:11.6]} 35... Nxf3 {[%clk 0:00:02.3]} 36.
Qxc4 {[%clk 0:00:10.2]} 1-0